[Event "Titled Tuesday Blitz January 17 Late 2023"]
[White "AidenRchess"]
[Black "Yurovskykh, Oleksandr"]
[BlackFideId "14134020"]
[WhiteElo "2443"]
[BlackElo "2328"]
[Result "0-1"]
[Round "08"]
[TimeControl "180+2"]
[Date "2023.01.17"]
[WhiteClock "0:00:07"]
[BlackClock "0:00:08"]

1. e4 {[%clk 0:03:00]}  g6 {[%clk 0:02:57]} 2. d4 {[%clk 0:03:00]}  Bg7 {[%clk 0:02:57]} 3. Nc3 {[%clk 0:03:00]}  d6 {[%clk 0:02:57]} 4. Be3 {[%clk 0:03:01]}  a6 {[%clk 0:02:54]} 5. Qd2 {[%clk 0:03:00]}  b5 {[%clk 0:02:53]} 6. h4 {[%clk 0:02:59]}  Nf6 {[%clk 0:02:52]} 7. f3 {[%clk 0:02:59]}  h5 {[%clk 0:02:48]} 8. O-O-O {[%clk 0:02:56]}  b4 {[%clk 0:02:47]} 9. Nce2 {[%clk 0:02:56]}  Nc6 {[%clk 0:02:47]} 10. Kb1 {[%clk 0:02:53]}  a5 {[%clk 0:02:47]} 11. Nf4 {[%clk 0:02:51]}  e5 {[%clk 0:02:23]} 12. dxe5 {[%clk 0:02:49]}  Nxe5 {[%clk 0:02:24]} 13. Bd4 {[%clk 0:02:44]}  Qe7 {[%clk 0:02:18]} 14. Bb5+ {[%clk 0:02:29]}  Kf8 {[%clk 0:01:49]} 15. Nge2 {[%clk 0:02:21]}  Kg8 {[%clk 0:01:35]} 16. Nd5 {[%clk 0:02:14]}  Nxd5 {[%clk 0:01:35]} 17. exd5 {[%clk 0:02:14]}  Kh7 {[%clk 0:01:33]} 18. g4 {[%clk 0:02:14]}  hxg4 {[%clk 0:01:31]} 19. h5 {[%clk 0:02:14]}  g5 {[%clk 0:01:22]} 20. f4 {[%clk 0:01:57]}  gxf4 {[%clk 0:01:20]} 21. h6 {[%clk 0:01:47]}  Bxh6 {[%clk 0:01:05]} 22. Qxf4 {[%clk 0:01:38]}  Kg7 {[%clk 0:01:03]} 23. Qg3 {[%clk 0:01:24]}  Bf5 {[%clk 0:00:29]} 24. Rdf1 {[%clk 0:01:22]}  Bg6 {[%clk 0:00:25]} 25. Qxg4 {[%clk 0:01:16]}  a4 {[%clk 0:00:21]} 26. Ng3 {[%clk 0:01:15]}  Qg5 {[%clk 0:00:20]} 27. Qe2 {[%clk 0:01:02]}  b3 {[%clk 0:00:18]} 28. Rhg1 {[%clk 0:00:58]}  bxc2+ {[%clk 0:00:17]} 29. Ka1 {[%clk 0:00:56]}  c1=Q+ {[%clk 0:00:13]} 30. Rxc1 {[%clk 0:00:55]}  Qxc1+ {[%clk 0:00:14]} 31. Rxc1 {[%clk 0:00:55]}  Bxc1 {[%clk 0:00:15]} 32. Bxe5+ {[%clk 0:00:54]}  dxe5 {[%clk 0:00:16]} 33. Qxe5+ {[%clk 0:00:54]}  Kh7 {[%clk 0:00:14]} 34. Ne4 {[%clk 0:00:50]}  Rhb8 {[%clk 0:00:09]} 35. Nf6+ {[%clk 0:00:47]}  Kh6 {[%clk 0:00:09]} 36. Ng4+ {[%clk 0:00:42]}  Kh7 {[%clk 0:00:09]} 37. Nf6+ {[%clk 0:00:39]}  Kh6 {[%clk 0:00:09]} 38. Ng4+ {[%clk 0:00:35]}  Kh7 {[%clk 0:00:09]} 39. Qh2+ {[%clk 0:00:36]}  Kg7 {[%clk 0:00:10]} 40. Qh6+ {[%clk 0:00:36]}  Bxh6 {[%clk 0:00:08]} 41. Ne5 {[%clk 0:00:07]}  Bf4 {[%clk 0:00:08]} 0-1


[Site "https://www.chess.com"]

[Event "Titled Tuesday Blitz January 17 Late 2023"]
[White "Bilan, Danila"]
[Black "Medeiros,Thauane Ferreira"]
[WhiteFideId "24161918"]
[BlackFideId "2134470"]
[WhiteElo "2303"]
[BlackElo "1854"]
[Result "0-1"]
[Round "08"]
[TimeControl "180+2"]
[Date "2023.01.17"]
[WhiteClock "0:00:06"]
[BlackClock "0:01:08"]

1. d4 {[%clk 0:03:00]}  d5 {[%clk 0:02:58]} 2. Nf3 {[%clk 0:03:00]}  Nf6 {[%clk 0:02:55]} 3. c4 {[%clk 0:02:59]}  e6 {[%clk 0:02:47]} 4. Nc3 {[%clk 0:02:57]}  Be7 {[%clk 0:02:46]} 5. Bg5 {[%clk 0:02:53]}  h6 {[%clk 0:02:44]} 6. Bh4 {[%clk 0:02:47]}  O-O {[%clk 0:02:43]} 7. e3 {[%clk 0:02:47]}  Ne4 {[%clk 0:02:39]} 8. Bxe7 {[%clk 0:02:39]}  Qxe7 {[%clk 0:02:40]} 9. Nxe4 {[%clk 0:02:30]}  dxe4 {[%clk 0:02:38]} 10. Nd2 {[%clk 0:02:23]}  f5 {[%clk 0:02:36]} 11. f4 {[%clk 0:02:21]}  c5 {[%clk 0:02:32]} 12. Nb3 {[%clk 0:02:02]}  b6 {[%clk 0:02:30]} 13. Qc2 {[%clk 0:01:40]}  Nc6 {[%clk 0:02:27]} 14. O-O-O {[%clk 0:01:22]}  Nb4 {[%clk 0:02:20]} 15. Qb1 {[%clk 0:01:20]}  a5 {[%clk 0:02:14]} 16. a3 {[%clk 0:01:07]}  a4 {[%clk 0:02:13]} 17. Na1 {[%clk 0:01:00]}  Nc6 {[%clk 0:02:10]} 18. d5 {[%clk 0:00:45]}  exd5 {[%clk 0:02:07]} 19. cxd5 {[%clk 0:00:44]}  Na5 {[%clk 0:02:08]} 20. Bb5 {[%clk 0:00:36]}  Bd7 {[%clk 0:02:02]} 21. Bxd7 {[%clk 0:00:31]}  Qxd7 {[%clk 0:02:01]} 22. Qc2 {[%clk 0:00:32]}  Qb5 {[%clk 0:01:49]} 23. Qc3 {[%clk 0:00:21]}  Qc4 {[%clk 0:01:42]} 24. Kc2 {[%clk 0:00:16]}  Qxc3+ {[%clk 0:01:32]} 25. Kxc3 {[%clk 0:00:17]}  b5 {[%clk 0:01:29]} 26. Rd2 {[%clk 0:00:16]}  Rab8 {[%clk 0:01:22]} 27. Nc2 {[%clk 0:00:09]}  b4+ {[%clk 0:01:20]} 28. axb4 {[%clk 0:00:09]}  cxb4+ {[%clk 0:01:21]} 29. Nxb4 {[%clk 0:00:08]}  Rfc8+ {[%clk 0:01:18]} 30. Nc6 {[%clk 0:00:08]}  Nxc6 {[%clk 0:01:17]} 31. dxc6 {[%clk 0:00:08]}  Rxc6+ {[%clk 0:01:18]} 32. Kd4 {[%clk 0:00:08]}  Rd8+ {[%clk 0:01:15]} 33. Ke5 {[%clk 0:00:08]}  Rxd2 {[%clk 0:01:15]} 34. Kxf5 {[%clk 0:00:08]}  Rxb2 {[%clk 0:01:15]} 35. g4 {[%clk 0:00:07]}  a3 {[%clk 0:01:13]} 36. g5 {[%clk 0:00:06]}  hxg5 {[%clk 0:01:13]} 37. fxg5 {[%clk 0:00:07]}  a2 {[%clk 0:01:13]} 38. Rd1 {[%clk 0:00:06]}  g6+ {[%clk 0:01:10]} 39. Kxe4 {[%clk 0:00:05]}  Rb1 {[%clk 0:01:09]} 40. Rd8+ {[%clk 0:00:06]}  Kf7 {[%clk 0:01:09]} 41. Rd7+ {[%clk 0:00:06]}  Ke8 {[%clk 0:01:08]} 0-1


[Site "https://www.chess.com"]

[Event "Titled Tuesday Blitz January 17 Late 2023"]
[White "Mirzoev, Azer"]
[Black "Saya, Ethan"]
[WhiteFideId "13400304"]
[BlackFideId "26095181"]
[WhiteElo "2416"]
[BlackElo "2181"]
[Result "1-0"]
[Round "08"]
[TimeControl "180+2"]
[Date "2023.01.17"]
[WhiteClock "0:00:03"]
[BlackClock "0:00:13"]

1. Nf3 {[%clk 0:02:59]}  Nc6 {[%clk 0:02:58]} 2. d4 {[%clk 0:02:57]}  d6 {[%clk 0:02:53]} 3. e4 {[%clk 0:02:56]}  e5 {[%clk 0:02:53]} 4. d5 {[%clk 0:02:40]}  Nce7 {[%clk 0:02:51]} 5. c4 {[%clk 0:02:40]}  f5 {[%clk 0:02:51]} 6. Nc3 {[%clk 0:02:39]}  Nf6 {[%clk 0:02:50]} 7. Bd3 {[%clk 0:02:36]}  g6 {[%clk 0:02:48]} 8. Ng5 {[%clk 0:02:29]}  Bg7 {[%clk 0:02:47]} 9. Qb3 {[%clk 0:02:23]}  O-O {[%clk 0:02:43]} 10. O-O {[%clk 0:02:20]}  fxe4 {[%clk 0:02:43]} 11. Ncxe4 {[%clk 0:02:18]}  Nxe4 {[%clk 0:02:43]} 12. Bxe4 {[%clk 0:02:18]}  Nf5 {[%clk 0:02:40]} 13. Ne6 {[%clk 0:02:11]}  Bxe6 {[%clk 0:02:38]} 14. dxe6 {[%clk 0:02:10]}  Nd4 {[%clk 0:02:36]} 15. Qxb7 {[%clk 0:02:05]}  Qe7 {[%clk 0:02:30]} 16. Be3 {[%clk 0:01:43]}  Rab8 {[%clk 0:02:25]} 17. Qxa7 {[%clk 0:01:41]}  Rxb2 {[%clk 0:02:25]} 18. Rab1 {[%clk 0:01:36]}  Rxb1 {[%clk 0:02:20]} 19. Bxb1 {[%clk 0:01:14]}  Nxe6 {[%clk 0:02:14]} 20. Be4 {[%clk 0:01:12]}  Nf4 {[%clk 0:02:09]} 21. Rb1 {[%clk 0:01:06]}  Ne2+ {[%clk 0:02:07]} 22. Kh1 {[%clk 0:01:03]}  Nc3 {[%clk 0:02:08]} 23. Bd5+ {[%clk 0:01:03]}  Nxd5 {[%clk 0:02:08]} 24. cxd5 {[%clk 0:01:03]}  e4 {[%clk 0:02:03]} 25. a4 {[%clk 0:00:56]}  Be5 {[%clk 0:02:03]} 26. h3 {[%clk 0:00:53]}  Bf4 {[%clk 0:01:55]} 27. a5 {[%clk 0:00:50]}  Bxe3 {[%clk 0:01:55]} 28. Qxe3 {[%clk 0:00:49]}  Ra8 {[%clk 0:01:50]} 29. Qc3 {[%clk 0:00:38]}  Qg7 {[%clk 0:01:37]} 30. Qd2 {[%clk 0:00:30]}  Qe5 {[%clk 0:01:30]} 31. Kg1 {[%clk 0:00:29]}  Kg7 {[%clk 0:01:24]} 32. Rc1 {[%clk 0:00:27]}  Ra7 {[%clk 0:01:19]} 33. Re1 {[%clk 0:00:26]}  c5 {[%clk 0:01:07]} 34. dxc6 {[%clk 0:00:26]}  Qxa5 {[%clk 0:01:08]} 35. Qd4+ {[%clk 0:00:23]}  Kg8 {[%clk 0:01:02]} 36. Qxe4 {[%clk 0:00:20]}  Qe5 {[%clk 0:00:46]} 37. Qxe5 {[%clk 0:00:20]}  dxe5 {[%clk 0:00:46]} 38. Rxe5 {[%clk 0:00:20]}  Ra1+ {[%clk 0:00:46]} 39. Kh2 {[%clk 0:00:20]}  Rc1 {[%clk 0:00:47]} 40. Re6 {[%clk 0:00:20]}  Kf7 {[%clk 0:00:47]} 41. Rd6 {[%clk 0:00:20]}  h5 {[%clk 0:00:42]} 42. h4 {[%clk 0:00:19]}  Rc4 {[%clk 0:00:40]} 43. g3 {[%clk 0:00:19]}  Rc2 {[%clk 0:00:39]} 44. Kg2 {[%clk 0:00:19]}  Rc3 {[%clk 0:00:39]} 45. Kf1 {[%clk 0:00:16]}  Rc2 {[%clk 0:00:38]} 46. Ke1 {[%clk 0:00:16]}  Kg7 {[%clk 0:00:38]} 47. f3 {[%clk 0:00:13]}  Kf7 {[%clk 0:00:36]} 48. Kf1 {[%clk 0:00:12]}  Kg7 {[%clk 0:00:31]} 49. g4 {[%clk 0:00:12]}  hxg4 {[%clk 0:00:30]} 50. fxg4 {[%clk 0:00:13]}  Rc4 {[%clk 0:00:28]} 51. g5 {[%clk 0:00:11]}  Kf7 {[%clk 0:00:26]} 52. Rf6+ {[%clk 0:00:08]}  Kg7 {[%clk 0:00:25]} 53. Ke2 {[%clk 0:00:08]}  Rxh4 {[%clk 0:00:17]} 54. Kd3 {[%clk 0:00:08]}  Rh1 {[%clk 0:00:15]} 55. Kd4 {[%clk 0:00:07]}  Rc1 {[%clk 0:00:14]} 56. Kd5 {[%clk 0:00:06]}  Rd1+ {[%clk 0:00:13]} 57. Kc5 {[%clk 0:00:06]}  Rc1+ {[%clk 0:00:13]} 58. Kb6 {[%clk 0:00:06]}  Rb1+ {[%clk 0:00:13]} 59. Ka7 {[%clk 0:00:06]}  Ra1+ {[%clk 0:00:14]} 60. Kb7 {[%clk 0:00:06]}  Rb1+ {[%clk 0:00:14]} 61. Kc8 {[%clk 0:00:06]}  Rg1 {[%clk 0:00:15]} 62. c7 {[%clk 0:00:06]}  Rxg5 {[%clk 0:00:14]} 63. Rc6 {[%clk 0:00:04]}  Kh6 {[%clk 0:00:11]} 64. Kb7 {[%clk 0:00:03]}  Rb5+ {[%clk 0:00:12]} 65. Ka6 {[%clk 0:00:03]}  Rb1 {[%clk 0:00:09]} 66. c8=Q {[%clk 0:00:03]}  Ra1+ {[%clk 0:00:10]} 67. Kb5 {[%clk 0:00:03]}  Rb1+ {[%clk 0:00:11]} 68. Kc4 {[%clk 0:00:03]}  Rc1+ {[%clk 0:00:11]} 69. Kd3 {[%clk 0:00:04]}  Rd1+ {[%clk 0:00:12]} 70. Ke2 {[%clk 0:00:03]}  Rg1 {[%clk 0:00:13]} 71. Kf2 {[%clk 0:00:03]}  Rg5 {[%clk 0:00:13]} 72. Qh8# {[%clk 0:00:03]} 1-0


[Site "https://www.chess.com"]

[Event "Titled Tuesday Blitz January 17 Late 2023"]
[White "Weetik, Vjacheslav"]
[Black "Khandelwal, Ankush"]
[WhiteFideId "4153472"]
[BlackFideId "413470"]
[WhiteElo "2423"]
[BlackElo "2205"]
[Result "1-0"]
[Round "08"]
[TimeControl "180+2"]
[Date "2023.01.17"]
[WhiteClock "0:00:34"]
[BlackClock "0:00:21"]

1. d4 {[%clk 0:02:59]}  Nf6 {[%clk 0:03:00]} 2. Nf3 {[%clk 0:02:59]}  g6 {[%clk 0:03:00]} 3. Bg5 {[%clk 0:02:59]}  Bg7 {[%clk 0:02:59]} 4. c3 {[%clk 0:03:00]}  O-O {[%clk 0:02:57]} 5. Nbd2 {[%clk 0:03:00]}  d6 {[%clk 0:02:55]} 6. e4 {[%clk 0:03:00]}  e5 {[%clk 0:02:39]} 7. dxe5 {[%clk 0:02:59]}  dxe5 {[%clk 0:02:40]} 8. Be2 {[%clk 0:02:58]}  h6 {[%clk 0:02:34]} 9. Bh4 {[%clk 0:02:56]}  Nc6 {[%clk 0:02:32]} 10. O-O {[%clk 0:02:54]}  Re8 {[%clk 0:02:26]} 11. Qc2 {[%clk 0:02:51]}  g5 {[%clk 0:02:21]} 12. Bg3 {[%clk 0:02:51]}  Nh5 {[%clk 0:02:21]} 13. Rfe1 {[%clk 0:02:52]}  Nf4 {[%clk 0:02:15]} 14. Bf1 {[%clk 0:02:52]}  Bg4 {[%clk 0:02:15]} 15. h3 {[%clk 0:02:39]}  Bh5 {[%clk 0:02:12]} 16. Nh2 {[%clk 0:02:39]}  Qf6 {[%clk 0:02:07]} 17. Nc4 {[%clk 0:02:34]}  Bg6 {[%clk 0:01:57]} 18. Ng4 {[%clk 0:02:24]}  Qe6 {[%clk 0:01:44]} 19. Nge3 {[%clk 0:02:01]}  Rad8 {[%clk 0:01:25]} 20. Nf5 {[%clk 0:01:50]}  Bxf5 {[%clk 0:01:11]} 21. exf5 {[%clk 0:01:51]}  Qd5 {[%clk 0:01:10]} 22. Rad1 {[%clk 0:01:38]}  Qc5 {[%clk 0:01:10]} 23. b4 {[%clk 0:01:37]}  Qf8 {[%clk 0:01:06]} 24. Qe4 {[%clk 0:01:27]}  a6 {[%clk 0:00:58]} 25. a4 {[%clk 0:01:27]}  Rxd1 {[%clk 0:00:44]} 26. Rxd1 {[%clk 0:01:27]}  Rd8 {[%clk 0:00:44]} 27. Rxd8 {[%clk 0:01:18]}  Nxd8 {[%clk 0:00:42]} 28. Ne3 {[%clk 0:00:59]}  Qe8 {[%clk 0:00:40]} 29. b5 {[%clk 0:00:48]}  axb5 {[%clk 0:00:39]} 30. axb5 {[%clk 0:00:49]}  c6 {[%clk 0:00:31]} 31. Bxf4 {[%clk 0:00:43]}  gxf4 {[%clk 0:00:30]} 32. Ng4 {[%clk 0:00:44]}  cxb5 {[%clk 0:00:29]} 33. f6 {[%clk 0:00:43]}  Bf8 {[%clk 0:00:27]} 34. Bd3 {[%clk 0:00:35]}  Bc5 {[%clk 0:00:20]} 35. Qh7+ {[%clk 0:00:34]}  Kf8 {[%clk 0:00:21]} 36. Qh8# {[%clk 0:00:34]} 1-0


[Site "https://www.chess.com"]

[Event "Titled Tuesday Blitz January 17 Late 2023"]
[White "Fiorito, Joaquin"]
[Black "Radovanovic, Dusan"]
[WhiteFideId "180173"]
[BlackFideId "926868"]
[WhiteElo "2405"]
[BlackElo "2311"]
[Result "1-0"]
[Round "08"]
[TimeControl "180+2"]
[Date "2023.01.17"]
[WhiteClock "0:03:03"]
[BlackClock "0:02:16"]

1. d4 {[%clk 0:03:00]}  Nf6 {[%clk 0:02:59]} 2. Nc3 {[%clk 0:03:00]}  d5 {[%clk 0:02:59]} 3. Bf4 {[%clk 0:03:01]}  a6 {[%clk 0:02:58]} 4. e3 {[%clk 0:03:01]}  e6 {[%clk 0:02:59]} 5. g4 {[%clk 0:03:01]}  Bb4 {[%clk 0:02:57]} 6. Ne2 {[%clk 0:03:01]}  O-O {[%clk 0:02:52]} 7. a3 {[%clk 0:03:01]}  Be7 {[%clk 0:02:49]} 8. g5 {[%clk 0:03:02]}  Nh5 {[%clk 0:02:49]} 9. h4 {[%clk 0:03:02]}  Nxf4 {[%clk 0:02:49]} 10. Nxf4 {[%clk 0:03:03]}  c5 {[%clk 0:02:41]} 11. Bd3 {[%clk 0:03:03]}  c4 {[%clk 0:02:16]} 12. Bxh7+ {[%clk 0:03:02]}  Kxh7 {[%clk 0:02:16]} 13. Qh5+ {[%clk 0:03:02]}  Kg8 {[%clk 0:02:16]} 14. g6 {[%clk 0:03:03]}  fxg6 {[%clk 0:02:16]} 15. Nxg6 {[%clk 0:03:04]}  Rf6 {[%clk 0:02:16]} 16. Qh8+ {[%clk 0:03:03]} 1-0


[Site "https://www.chess.com"]

[Event "Titled Tuesday Blitz January 17 Late 2023"]
[White "Nefedov, Sergey"]
[Black "reevecanada"]
[WhiteFideId "24113417"]
[WhiteElo "2300"]
[BlackElo "2474"]
[Result "1-0"]
[Round "08"]
[TimeControl "180+2"]
[Date "2023.01.17"]
[WhiteClock "0:00:23"]
[BlackClock "0:00:52"]

1. d4 {[%clk 0:03:00]}  Nf6 {[%clk 0:02:59]} 2. Nf3 {[%clk 0:03:00]}  d5 {[%clk 0:02:59]} 3. c4 {[%clk 0:02:59]}  c6 {[%clk 0:02:58]} 4. Nc3 {[%clk 0:03:00]}  e6 {[%clk 0:02:58]} 5. Bg5 {[%clk 0:02:59]}  Be7 {[%clk 0:02:56]} 6. e3 {[%clk 0:02:59]}  h6 {[%clk 0:02:55]} 7. Bh4 {[%clk 0:02:58]}  g5 {[%clk 0:02:55]} 8. Bg3 {[%clk 0:02:58]}  Nbd7 {[%clk 0:02:55]} 9. Bd3 {[%clk 0:02:49]}  dxc4 {[%clk 0:02:50]} 10. Bxc4 {[%clk 0:02:48]}  Nb6 {[%clk 0:02:46]} 11. Be2 {[%clk 0:02:34]}  Bd6 {[%clk 0:02:46]} 12. Ne5 {[%clk 0:02:29]}  Nbd5 {[%clk 0:02:44]} 13. h4 {[%clk 0:02:14]}  Nxc3 {[%clk 0:02:32]} 14. bxc3 {[%clk 0:02:13]}  Nd5 {[%clk 0:02:31]} 15. c4 {[%clk 0:02:03]}  Nc3 {[%clk 0:02:30]} 16. Qc2 {[%clk 0:02:02]}  Bb4 {[%clk 0:02:26]} 17. Bh5 {[%clk 0:01:20]}  Ne4+ {[%clk 0:01:57]} 18. Ke2 {[%clk 0:01:18]}  Nd6 {[%clk 0:01:45]} 19. c5 {[%clk 0:01:12]}  Nb5 {[%clk 0:01:40]} 20. Nxf7 {[%clk 0:01:10]}  Nc3+ {[%clk 0:01:40]} 21. Kf1 {[%clk 0:01:09]}  Qd5 {[%clk 0:01:22]} 22. Nxh8+ {[%clk 0:00:56]}  Kd8 {[%clk 0:01:22]} 23. Nf7+ {[%clk 0:00:53]}  Kd7 {[%clk 0:01:17]} 24. Ne5+ {[%clk 0:00:51]}  Kd8 {[%clk 0:01:16]} 25. hxg5 {[%clk 0:00:43]}  hxg5 {[%clk 0:01:15]} 26. Bf3 {[%clk 0:00:39]}  b6 {[%clk 0:01:11]} 27. Rh8+ {[%clk 0:00:35]}  Kc7 {[%clk 0:01:10]} 28. Bxd5 {[%clk 0:00:35]}  Ba6+ {[%clk 0:01:09]} 29. Kg1 {[%clk 0:00:34]}  Rxh8 {[%clk 0:01:06]} 30. Nf7+ {[%clk 0:00:31]}  Kb7 {[%clk 0:01:05]} 31. Bxc6+ {[%clk 0:00:30]}  Kxc6 {[%clk 0:01:02]} 32. Nxh8 {[%clk 0:00:30]}  Bc4 {[%clk 0:00:59]} 33. cxb6 {[%clk 0:00:27]}  axb6 {[%clk 0:00:59]} 34. Rc1 {[%clk 0:00:26]}  Kb5 {[%clk 0:00:55]} 35. Kh2 {[%clk 0:00:23]}  Ka5 {[%clk 0:00:52]} 36. a3 {[%clk 0:00:23]}  Bxa3 {[%clk 0:00:51]} 37. Qxc3+ {[%clk 0:00:23]}  Bb4 {[%clk 0:00:52]} 38. Qxc4 {[%clk 0:00:23]}  Ka4 {[%clk 0:00:52]} 39. Ra1# {[%clk 0:00:23]} 1-0


[Site "https://www.chess.com"]

[Event "Titled Tuesday Blitz January 17 Late 2023"]
[White "Janaszak, Dawid"]
[Black "Mosquera, Miguel"]
[WhiteFideId "1119206"]
[BlackFideId "4401131"]
[WhiteElo "2316"]
[BlackElo "2371"]
[Result "1-0"]
[Round "08"]
[TimeControl "180+2"]
[Date "2023.01.17"]
[WhiteClock "0:00:14"]
[BlackClock "0:00:03"]

1. e4 {[%clk 0:03:00]}  c5 {[%clk 0:02:57]} 2. Nc3 {[%clk 0:03:00]}  e6 {[%clk 0:02:52]} 3. f4 {[%clk 0:03:00]}  Nc6 {[%clk 0:02:51]} 4. Nf3 {[%clk 0:02:59]}  d5 {[%clk 0:02:50]} 5. Bb5 {[%clk 0:02:59]}  a6 {[%clk 0:02:40]} 6. Bxc6+ {[%clk 0:02:59]}  bxc6 {[%clk 0:02:41]} 7. d3 {[%clk 0:02:52]}  Bd6 {[%clk 0:02:38]} 8. O-O {[%clk 0:02:51]}  Ne7 {[%clk 0:02:38]} 9. Qe1 {[%clk 0:02:48]}  O-O {[%clk 0:02:38]} 10. b3 {[%clk 0:02:45]}  c4 {[%clk 0:02:21]} 11. dxc4 {[%clk 0:02:40]}  dxc4 {[%clk 0:01:54]} 12. Kh1 {[%clk 0:02:40]}  cxb3 {[%clk 0:01:54]} 13. axb3 {[%clk 0:02:41]}  Ng6 {[%clk 0:01:52]} 14. e5 {[%clk 0:02:36]}  Bb4 {[%clk 0:01:50]} 15. Bb2 {[%clk 0:02:08]}  Nxf4 {[%clk 0:01:46]} 16. Qe4 {[%clk 0:02:02]}  Bxc3 {[%clk 0:01:36]} 17. Bxc3 {[%clk 0:02:03]}  Nd5 {[%clk 0:01:37]} 18. Bd2 {[%clk 0:02:03]}  f5 {[%clk 0:01:28]} 19. exf6 {[%clk 0:02:00]}  Nxf6 {[%clk 0:01:28]} 20. Qxc6 {[%clk 0:01:55]}  Bd7 {[%clk 0:01:22]} 21. Qd6 {[%clk 0:01:31]}  Ne4 {[%clk 0:01:05]} 22. Qe5 {[%clk 0:01:31]}  Nxd2 {[%clk 0:00:48]} 23. Nxd2 {[%clk 0:01:28]}  Qe7 {[%clk 0:00:47]} 24. Ne4 {[%clk 0:01:11]}  Bc6 {[%clk 0:00:35]} 25. Ng5 {[%clk 0:01:05]}  Rae8 {[%clk 0:00:23]} 26. Kg1 {[%clk 0:00:50]}  h6 {[%clk 0:00:20]} 27. Nh3 {[%clk 0:00:39]}  Qa7+ {[%clk 0:00:19]} 28. Kh1 {[%clk 0:00:36]}  Qb7 {[%clk 0:00:14]} 29. Qe2 {[%clk 0:00:25]}  Rxf1+ {[%clk 0:00:11]} 30. Rxf1 {[%clk 0:00:26]}  e5 {[%clk 0:00:07]} 31. Kg1 {[%clk 0:00:21]}  Qb6+ {[%clk 0:00:07]} 32. Qf2 {[%clk 0:00:21]}  Qc7 {[%clk 0:00:06]} 33. Qc5 {[%clk 0:00:18]}  Qd7 {[%clk 0:00:03]} 34. Nf2 {[%clk 0:00:14]}  e4 {[%clk 0:00:03]} 35. Rd1 {[%clk 0:00:14]} 1-0


[Site "https://www.chess.com"]

[Event "Titled Tuesday Blitz January 17 Late 2023"]
[White "Hajiyev, Kanan"]
[Black "Musovic, Armin"]
[WhiteFideId "13404148"]
[BlackFideId "939935"]
[WhiteElo "2197"]
[BlackElo "2261"]
[Result "1/2-1/2"]
[Round "08"]
[TimeControl "180+2"]
[Date "2023.01.17"]
[WhiteClock "0:00:06"]
[BlackClock "0:00:22"]

1. d4 {[%clk 0:02:49]}  d5 {[%clk 0:02:59]} 2. c4 {[%clk 0:02:46]}  c5 {[%clk 0:03:00]} 3. cxd5 {[%clk 0:02:47]}  e6 {[%clk 0:02:58]} 4. dxe6 {[%clk 0:02:42]}  Bxe6 {[%clk 0:02:58]} 5. Nf3 {[%clk 0:02:38]}  Nc6 {[%clk 0:02:58]} 6. e3 {[%clk 0:02:33]}  a6 {[%clk 0:02:58]} 7. Be2 {[%clk 0:02:30]}  Nf6 {[%clk 0:02:57]} 8. O-O {[%clk 0:02:30]}  h6 {[%clk 0:02:52]} 9. dxc5 {[%clk 0:02:27]}  Qa5 {[%clk 0:02:52]} 10. Nc3 {[%clk 0:02:17]}  Rd8 {[%clk 0:02:47]} 11. Nd4 {[%clk 0:02:10]}  Nxd4 {[%clk 0:02:43]} 12. exd4 {[%clk 0:02:10]}  Bxc5 {[%clk 0:02:43]} 13. Be3 {[%clk 0:02:02]}  Bd6 {[%clk 0:02:38]} 14. Qa4+ {[%clk 0:01:57]}  Qxa4 {[%clk 0:02:36]} 15. Nxa4 {[%clk 0:01:58]}  Ng4 {[%clk 0:02:30]} 16. h3 {[%clk 0:01:47]}  Nxe3 {[%clk 0:02:25]} 17. fxe3 {[%clk 0:01:48]}  b5 {[%clk 0:02:18]} 18. Nc3 {[%clk 0:01:41]}  O-O {[%clk 0:02:17]} 19. Rac1 {[%clk 0:01:37]}  Rfe8 {[%clk 0:02:14]} 20. Kf2 {[%clk 0:01:24]}  Be7 {[%clk 0:02:01]} 21. a3 {[%clk 0:01:22]}  Bh4+ {[%clk 0:02:00]} 22. g3 {[%clk 0:01:20]}  Bf6 {[%clk 0:01:45]} 23. h4 {[%clk 0:01:06]}  Rd7 {[%clk 0:01:25]} 24. Bf3 {[%clk 0:01:02]}  Rde7 {[%clk 0:01:19]} 25. Ne4 {[%clk 0:00:59]}  Bc4 {[%clk 0:01:12]} 26. Nxf6+ {[%clk 0:00:56]}  gxf6 {[%clk 0:01:13]} 27. Rfe1 {[%clk 0:00:56]}  a5 {[%clk 0:01:10]} 28. e4 {[%clk 0:00:39]}  Rd8 {[%clk 0:01:05]} 29. d5 {[%clk 0:00:39]}  f5 {[%clk 0:01:03]} 30. exf5 {[%clk 0:00:38]}  Red7 {[%clk 0:01:02]} 31. Rcd1 {[%clk 0:00:28]}  Kg7 {[%clk 0:01:00]} 32. g4 {[%clk 0:00:27]}  Kf6 {[%clk 0:01:01]} 33. Kg3 {[%clk 0:00:21]}  Bxd5 {[%clk 0:00:56]} 34. Kf4 {[%clk 0:00:20]}  Bxf3 {[%clk 0:00:54]} 35. g5+ {[%clk 0:00:21]}  Kg7 {[%clk 0:00:54]} 36. Rxd7 {[%clk 0:00:19]}  Rxd7 {[%clk 0:00:53]} 37. Kxf3 {[%clk 0:00:19]}  Rd4 {[%clk 0:00:51]} 38. Re4 {[%clk 0:00:18]}  Rd2 {[%clk 0:00:44]} 39. b4 {[%clk 0:00:15]}  a4 {[%clk 0:00:41]} 40. Re5 {[%clk 0:00:13]}  Rd3+ {[%clk 0:00:40]} 41. Kg4 {[%clk 0:00:14]}  Rxa3 {[%clk 0:00:36]} 42. f6+ {[%clk 0:00:14]}  Kh7 {[%clk 0:00:35]} 43. Rxb5 {[%clk 0:00:13]}  hxg5 {[%clk 0:00:32]} 44. hxg5 {[%clk 0:00:12]}  Rb3 {[%clk 0:00:29]} 45. Kf5 {[%clk 0:00:10]}  Rf3+ {[%clk 0:00:26]} 46. Ke4 {[%clk 0:00:10]}  Rg3 {[%clk 0:00:25]} 47. Kf4 {[%clk 0:00:05]}  Rc3 {[%clk 0:00:23]} 48. Ra5 {[%clk 0:00:04]}  Kg6 {[%clk 0:00:20]} 49. Rxa4 {[%clk 0:00:03]}  Rc4+ {[%clk 0:00:20]} 50. Ke5 {[%clk 0:00:03]}  Kxg5 {[%clk 0:00:20]} 51. Kd5 {[%clk 0:00:03]}  Rf4 {[%clk 0:00:20]} 52. Kc5 {[%clk 0:00:04]}  Kxf6 {[%clk 0:00:19]} 53. Ra6+ {[%clk 0:00:04]}  Ke5 {[%clk 0:00:20]} 54. b5 {[%clk 0:00:04]}  Rf2 {[%clk 0:00:20]} 55. Ra8 {[%clk 0:00:04]}  Rc2+ {[%clk 0:00:21]} 56. Kb4 {[%clk 0:00:05]}  Rb2+ {[%clk 0:00:20]} 57. Kc4 {[%clk 0:00:05]}  f5 {[%clk 0:00:21]} 58. Re8+ {[%clk 0:00:05]}  Kf6 {[%clk 0:00:21]} 59. Kc5 {[%clk 0:00:04]}  Rc2+ {[%clk 0:00:20]} 60. Kd6 {[%clk 0:00:03]}  Rd2+ {[%clk 0:00:21]} 61. Kc6 {[%clk 0:00:04]}  Rc2+ {[%clk 0:00:22]} 62. Kd6 {[%clk 0:00:04]}  Rb2 {[%clk 0:00:21]} 63. Kc6 {[%clk 0:00:04]}  f4 {[%clk 0:00:21]} 64. Rf8+ {[%clk 0:00:05]}  Ke5 {[%clk 0:00:21]} 65. b6 {[%clk 0:00:05]}  Rc2+ {[%clk 0:00:22]} 66. Kb5 {[%clk 0:00:06]}  Rb2+ {[%clk 0:00:21]} 67. Kc6 {[%clk 0:00:06]}  Rc2+ {[%clk 0:00:22]} 68. Kb5 {[%clk 0:00:06]}  Rb2+ {[%clk 0:00:22]} 69. Ka6 {[%clk 0:00:06]}  Ra2+ {[%clk 0:00:22]} 70. Kb5 {[%clk 0:00:06]}  Rb2+ {[%clk 0:00:22]} 1/2-1/2


[Site "https://www.chess.com"]